[Event "*** MasterClass Titled Tuesday Blitz"]
[Site "Chess.com"]
[Date "2017.09.05"]
[Round "4"]
[White "Keranke"]
[Black "champ2005"]
[Result "1/2-1/2"]
[WhiteElo "2683"]
[BlackElo "2497"]
[TimeControl "180+2"]
[EndTime "13:58:48 PDT"]
[Termination "Game drawn - insufficient material"]

1. d4 {[%clk 0:03:01.9]} 1... Nf6 {[%clk 0:02:57.8]} 2. Nf3 {[%clk 0:03:02.5]}
2... e6 {[%clk 0:02:58.8]} 3. Bf4 {[%clk 0:03:03.6]} 3... d5 {[%clk 0:02:59]} 4.
e3 {[%clk 0:03:05]} 4... Bd6 {[%clk 0:02:59.7]} 5. Ne5 {[%clk 0:03:06]} 5... c5
{[%clk 0:02:59.4]} 6. Nd2 {[%clk 0:03:06.3]} 6... O-O {[%clk 0:02:58.4]} 7. c3
{[%clk 0:03:07.3]} 7... Qc7 {[%clk 0:02:59.1]} 8. Bd3 {[%clk 0:03:08.1]} 8...
Nfd7 {[%clk 0:02:50.2]} 9. Ndf3 {[%clk 0:03:00.8]} 9... f6 {[%clk 0:02:48.3]}
10. Nxd7 {[%clk 0:02:59.7]} 10... Nxd7 {[%clk 0:02:49.2]} 11. Bg3 {[%clk
0:02:53.7]} 11... Kh8 {[%clk 0:02:37.7]} 12. Qc2 {[%clk 0:02:52.1]} 12... f5
{[%clk 0:02:33]} 13. Ng5 {[%clk 0:02:37.4]} 13... Nf6 {[%clk 0:02:30.1]} 14.
Bxd6 {[%clk 0:02:37.2]} 14... Qxd6 {[%clk 0:02:30]} 15. f4 {[%clk 0:02:37.9]}
15... b6 {[%clk 0:02:16]} 16. O-O {[%clk 0:02:35.6]} 16... Bd7 {[%clk
0:02:15.1]} 17. Nf3 {[%clk 0:02:24.2]} 17... c4 {[%clk 0:02:13.7]} 18. Be2
{[%clk 0:02:24.3]} 18... Be8 {[%clk 0:02:14.1]} 19. b3 {[%clk 0:02:23]} 19... b5
{[%clk 0:02:12.4]} 20. bxc4 {[%clk 0:02:09]} 20... bxc4 {[%clk 0:02:09.1]} 21.
Rfb1 {[%clk 0:02:10.5]} 21... Bh5 {[%clk 0:02:05.9]} 22. Rb7 {[%clk 0:02:11.2]}
22... Bxf3 {[%clk 0:01:51.4]} 23. gxf3 {[%clk 0:02:13.1]} 23... Rfb8 {[%clk
0:01:42]} 24. Rab1 {[%clk 0:02:12.4]} 24... a6 {[%clk 0:01:16.6]} 25. Qa4 {[%clk
0:02:06.2]} 25... h6 {[%clk 0:01:02.8]} 26. Kf2 {[%clk 0:02:00.6]} 26... Rxb7
{[%clk 0:00:43.1]} 27. Rxb7 {[%clk 0:02:01]} 27... g5 {[%clk 0:00:42.7]} 28.
fxg5 {[%clk 0:01:47.9]} 28... Qxh2+ {[%clk 0:00:40.5]} 29. Ke1 {[%clk 0:01:49]}
29... hxg5 {[%clk 0:00:34.3]} 30. Qc6 {[%clk 0:01:50]} 30... g4 {[%clk
0:00:20.7]} 31. Qxe6 {[%clk 0:01:47.1]} 31... Rf8 {[%clk 0:00:19.2]} 32. Qe7
{[%clk 0:01:47.2]} 32... Qh6 {[%clk 0:00:18.7]} 33. Rb6 {[%clk 0:01:39.8]} 33...
g3 {[%clk 0:00:18.6]} 34. Bf1 {[%clk 0:01:38.8]} 34... Qg7 {[%clk 0:00:15.6]}
35. Qe5 {[%clk 0:01:31.3]} 35... Nd7 {[%clk 0:00:14.8]} 36. Qxg7+ {[%clk
0:01:25]} 36... Kxg7 {[%clk 0:00:16.2]} 37. Rxa6 {[%clk 0:01:18.7]} 37... Nf6
{[%clk 0:00:16.9]} 38. Bh3 {[%clk 0:01:18.6]} 38... Rb8 {[%clk 0:00:17.1]} 39.
Bxf5 {[%clk 0:01:17.7]} 39... Rb2 {[%clk 0:00:18]} 40. Kf1 {[%clk 0:01:17.4]}
40... Rf2+ {[%clk 0:00:18.8]} 41. Kg1 {[%clk 0:01:18.2]} 41... Rxf3 {[%clk
0:00:20.2]} 42. Bh3 {[%clk 0:00:36]} 42... Rxe3 {[%clk 0:00:20.4]} 43. a4 {[%clk
0:00:29.4]} 43... Rxc3 {[%clk 0:00:21.5]} 44. a5 {[%clk 0:00:30.8]} 44... Ra3
{[%clk 0:00:22.7]} 45. Ra8 {[%clk 0:00:31.3]} 45... c3 {[%clk 0:00:21.7]} 46.
Bf5 {[%clk 0:00:31.3]} 46... Ne4 {[%clk 0:00:19.1]} 47. Bxe4 {[%clk 0:00:21.4]}
47... dxe4 {[%clk 0:00:20.3]} 48. Kg2 {[%clk 0:00:23.3]} 48... c2 {[%clk
0:00:14.7]} 49. Rc8 {[%clk 0:00:24.2]} 49... Rxa5 {[%clk 0:00:15.8]} 50. Rxc2
{[%clk 0:00:22.5]} 50... Ra3 {[%clk 0:00:16.7]} 51. Re2 {[%clk 0:00:23.5]} 51...
Kf6 {[%clk 0:00:15.4]} 52. Rxe4 {[%clk 0:00:24.8]} 52... Kf5 {[%clk 0:00:16.8]}
53. Rh4 {[%clk 0:00:23.9]} 53... Rd3 {[%clk 0:00:17.1]} 54. d5 {[%clk
0:00:23.7]} 54... Rxd5 {[%clk 0:00:17.5]} 55. Rh5+ {[%clk 0:00:25.2]} 55... Ke4
{[%clk 0:00:18.4]} 56. Rxd5 {[%clk 0:00:27.1]} 56... Kxd5 {[%clk 0:00:20]} 57.
Kxg3 {[%clk 0:00:29]} 1/2-1/2

[Event "*** MasterClass Titled Tuesday Blitz"]
[Site "Chess.com"]
[Date "2017.09.05"]
[Round "4"]
[White "Aygehovit1992"]
[Black "Fandorine"]
[Result "1/2-1/2"]
[WhiteElo "2460"]
[BlackElo "2668"]
[TimeControl "180+2"]
[EndTime "13:58:55 PDT"]
[Termination "Game drawn by agreement"]

1. e4 {[%clk 0:03:01.9]} 1... g6 {[%clk 0:02:51.8]} 2. Nc3 {[%clk 0:02:58.4]}
2... Bg7 {[%clk 0:02:52.2]} 3. d4 {[%clk 0:02:58.6]} 3... d6 {[%clk 0:02:52.3]}
4. Be2 {[%clk 0:02:59.7]} 4... Nf6 {[%clk 0:02:48.5]} 5. g4 {[%clk 0:02:56.9]}
5... c5 {[%clk 0:02:42.2]} 6. g5 {[%clk 0:02:46.5]} 6... Nfd7 {[%clk 0:02:42.8]}
7. Be3 {[%clk 0:02:44.1]} 7... Nc6 {[%clk 0:02:42.7]} 8. d5 {[%clk 0:02:44.8]}
8... Nd4 {[%clk 0:02:42.6]} 9. Nf3 {[%clk 0:02:43.1]} 9... Nxf3+ {[%clk
0:02:29]} 10. Bxf3 {[%clk 0:02:43.2]} 10... b5 {[%clk 0:02:30.6]} 11. Bg2 {[%clk
0:02:33.8]} 11... b4 {[%clk 0:02:29.1]} 12. Na4 {[%clk 0:02:33.6]} 12... Nb6
{[%clk 0:02:19.5]} 13. Nxb6 {[%clk 0:02:32.2]} 13... axb6 {[%clk 0:02:20.7]} 14.
Qc1 {[%clk 0:02:32.5]} 14... Ba6 {[%clk 0:02:10.5]} 15. f4 {[%clk 0:02:26.6]}
15... h6 {[%clk 0:02:08.3]} 16. gxh6 {[%clk 0:02:12.6]} 16... Rxh6 {[%clk
0:02:01.7]} 17. a3 {[%clk 0:02:13.7]} 17... bxa3 {[%clk 0:01:30.2]} 18. Rxa3
{[%clk 0:02:11.9]} 18... Bb5 {[%clk 0:01:31.7]} 19. c4 {[%clk 0:02:08]} 19...
Bd7 {[%clk 0:01:16.4]} 20. O-O {[%clk 0:02:07.9]} 20... Rxa3 {[%clk 0:01:11.2]}
21. bxa3 {[%clk 0:02:06.9]} 21... Bh3 {[%clk 0:01:12.5]} 22. Rf2 {[%clk
0:01:42.7]} 22... Bxg2 {[%clk 0:01:10.7]} 23. Rxg2 {[%clk 0:01:44.6]} 23... Rh3
{[%clk 0:01:09.8]} 24. Rg3 {[%clk 0:01:41.5]} 24... Qd7 {[%clk 0:01:07.4]} 25.
Qd1 {[%clk 0:01:24.1]} 25... Rxg3+ {[%clk 0:00:50.6]} 26. hxg3 {[%clk
0:01:23.1]} 26... Qh3 {[%clk 0:00:48.5]} 27. Qf3 {[%clk 0:01:20.6]} 27... f5
{[%clk 0:00:48.5]} 28. Bf2 {[%clk 0:01:13.7]} 28... fxe4 {[%clk 0:00:30.7]} 29.
Qxe4 {[%clk 0:01:13.3]} 29... Kf7 {[%clk 0:00:29.8]} 30. Qb1 {[%clk 0:01:09.2]}
30... Bd4 {[%clk 0:00:28.6]} 31. Qd3 {[%clk 0:01:02.2]} 31... Bf6 {[%clk
0:00:24.5]} 32. a4 {[%clk 0:00:56.9]} 32... Qd7 {[%clk 0:00:15.1]} 33. Qc2
{[%clk 0:00:57.4]} 33... Qg4 {[%clk 0:00:13.7]} 34. Kg2 {[%clk 0:00:58.5]} 34...
g5 {[%clk 0:00:14.6]} 35. fxg5 {[%clk 0:00:57.6]} 35... Bxg5 {[%clk 0:00:15]}
36. Qd3 {[%clk 0:00:55.2]} 36... Bf6 {[%clk 0:00:15.1]} 37. Qh7+ {[%clk
0:00:38.1]} 37... Ke8 {[%clk 0:00:16.1]} 38. Qd3 {[%clk 0:00:36]} 38... Kd7
{[%clk 0:00:17.1]} 39. Kf1 {[%clk 0:00:32.5]} 39... Kc7 {[%clk 0:00:14.5]} 40.
Qe2 {[%clk 0:00:30.7]} 40... Qh3+ {[%clk 0:00:15.6]} 41. Kg1 {[%clk 0:00:31.9]}
41... Be5 {[%clk 0:00:13.5]} 42. Qf3 {[%clk 0:00:30.4]} 42... Qh7 {[%clk
0:00:14.5]} 43. Kg2 {[%clk 0:00:30.7]} 43... Qc2 {[%clk 0:00:14.4]} 44. Qf7
{[%clk 0:00:26.1]} 44... Bf6 {[%clk 0:00:12.9]} 45. Qe8 {[%clk 0:00:23.2]} 45...
Qe4+ {[%clk 0:00:13.2]} 46. Kg1 {[%clk 0:00:23.9]} 46... Qxc4 {[%clk 0:00:14.4]}
47. Qc6+ {[%clk 0:00:24.5]} 47... Kd8 {[%clk 0:00:14]} 48. Qxb6+ {[%clk
0:00:26.4]} 48... Ke8 {[%clk 0:00:15.1]} 49. a5 {[%clk 0:00:16.5]} 49... Bd4
{[%clk 0:00:16.1]} 50. Bxd4 {[%clk 0:00:14.3]} 50... Qxd4+ {[%clk 0:00:17.4]}
51. Kh2 {[%clk 0:00:15.3]} 51... Qd2+ {[%clk 0:00:06.1]} 1/2-1/2

[Event "*** MasterClass Titled Tuesday Blitz"]
[Site "Chess.com"]
[Date "2017.09.05"]
[Round "4"]
[White "ChadaevNikolay"]
[Black "Bengalas"]
[Result "1-0"]
[WhiteElo "2693"]
[BlackElo "2485"]
[TimeControl "180+2"]
[EndTime "13:59:39 PDT"]
[Termination "ChadaevNikolay won by resignation"]

1. e4 {[%clk 0:03:01.9]} 1... c5 {[%clk 0:02:59.9]} 2. Nf3 {[%clk 0:03:02.4]}
2... d6 {[%clk 0:02:58.7]} 3. d4 {[%clk 0:03:02.7]} 3... cxd4 {[%clk 0:02:59.9]}
4. Nxd4 {[%clk 0:03:03.4]} 4... Nf6 {[%clk 0:03:01.4]} 5. Nc3 {[%clk 0:03:04.5]}
5... a6 {[%clk 0:03:02.2]} 6. h3 {[%clk 0:03:05.4]} 6... e5 {[%clk 0:03:00.5]}
7. Nde2 {[%clk 0:03:05.4]} 7... h5 {[%clk 0:03:01.1]} 8. g3 {[%clk 0:02:59.6]}
8... Be7 {[%clk 0:02:53.4]} 9. Bg2 {[%clk 0:03:00.1]} 9... Nbd7 {[%clk
0:02:52.1]} 10. a4 {[%clk 0:02:58.9]} 10... b6 {[%clk 0:02:53.2]} 11. O-O {[%clk
0:02:51.8]} 11... Bb7 {[%clk 0:02:54.3]} 12. Be3 {[%clk 0:02:48.6]} 12... Rc8
{[%clk 0:02:55]} 13. f4 {[%clk 0:02:36.4]} 13... O-O {[%clk 0:02:20.7]} 14. Kh2
{[%clk 0:02:16.9]} 14... Rc7 {[%clk 0:02:07.9]} 15. Qe1 {[%clk 0:02:04.9]} 15...
Qa8 {[%clk 0:02:08.5]} 16. fxe5 {[%clk 0:01:48.1]} 16... dxe5 {[%clk 0:02:07.1]}
17. Bg5 {[%clk 0:01:49.1]} 17... Bb4 {[%clk 0:01:36]} 18. Bxf6 {[%clk
0:01:39.6]} 18... Nxf6 {[%clk 0:01:36.6]} 19. Rxf6 {[%clk 0:01:40.6]} 19... gxf6
{[%clk 0:01:37.8]} 20. Qf2 {[%clk 0:01:41.9]} 20... Qd8 {[%clk 0:01:34.8]} 21.
Rd1 {[%clk 0:01:35.8]} 21... Qe7 {[%clk 0:01:22.9]} 22. Qf5 {[%clk 0:01:35.7]}
22... Kg7 {[%clk 0:01:17.7]} 23. Qxh5 {[%clk 0:01:32.7]} 23... Rh8 {[%clk
0:01:18]} 24. Qg4+ {[%clk 0:01:32.7]} 24... Kf8 {[%clk 0:01:19]} 25. h4 {[%clk
0:01:29.5]} 25... Bc8 {[%clk 0:01:00]} 26. Qf3 {[%clk 0:01:28.8]} 26... Be6
{[%clk 0:01:00.9]} 27. Bh3 {[%clk 0:01:20.3]} 27... Kg7 {[%clk 0:00:46.3]} 28.
Rf1 {[%clk 0:01:07.2]} 28... Bxc3 {[%clk 0:00:35.6]} 29. Nxc3 {[%clk 0:01:07.3]}
29... b5 {[%clk 0:00:36.7]} 30. axb5 {[%clk 0:01:07.7]} 30... axb5 {[%clk
0:00:37.5]} 31. Rf2 {[%clk 0:01:03.5]} 31... b4 {[%clk 0:00:38.2]} 32. Nd1
{[%clk 0:00:58.6]} 32... Rhc8 {[%clk 0:00:27.2]} 33. Ne3 {[%clk 0:00:59.3]}
33... Rd8 {[%clk 0:00:25.2]} 34. Bf5 {[%clk 0:00:55.6]} 34... Rh8 {[%clk
0:00:24.8]} 35. Qg4+ {[%clk 0:00:55.7]} 35... Kf8 {[%clk 0:00:25.9]} 36. Rd2
{[%clk 0:00:51]} 36... Rd7 {[%clk 0:00:24.1]} 37. Rf2 {[%clk 0:00:46.9]} 37...
Rd4 {[%clk 0:00:23.4]} 38. Qf3 {[%clk 0:00:40.4]} 38... Kg7 {[%clk 0:00:21.3]}
39. Qg4+ {[%clk 0:00:32.2]} 39... Kf8 {[%clk 0:00:22.1]} 40. Kh3 {[%clk
0:00:33.4]} 40... Rg8 {[%clk 0:00:22.1]} 41. Qh5 {[%clk 0:00:34.3]} 41... Rxe4
{[%clk 0:00:21.9]} 42. Qh6+ {[%clk 0:00:32.6]} 42... Ke8 {[%clk 0:00:22.9]} 43.
Qh7 {[%clk 0:00:33.6]} 43... Rf8 {[%clk 0:00:23]} 44. Ng4 {[%clk 0:00:30.7]}
44... Rd4 {[%clk 0:00:22.2]} 45. Qg7 {[%clk 0:00:28.8]} 45... Rxg4 {[%clk
0:00:19.4]} 46. Qxg4 {[%clk 0:00:28.9]} 46... Qd6 {[%clk 0:00:18.7]} 47. Qg7
{[%clk 0:00:26.1]} 47... Ke7 {[%clk 0:00:19.3]} 48. h5 {[%clk 0:00:24.1]} 48...
Bxf5+ {[%clk 0:00:20]} 49. Rxf5 {[%clk 0:00:24.6]} 49... Qe6 {[%clk 0:00:21.6]}
50. g4 {[%clk 0:00:21.2]} 50... b3 {[%clk 0:00:22.8]} 51. c3 {[%clk 0:00:21.8]}
51... Rd8 {[%clk 0:00:23.7]} 52. h6 {[%clk 0:00:23.2]} 52... Rd3+ {[%clk
0:00:24.4]} 53. Kh4 {[%clk 0:00:24.5]} 53... Rd1 {[%clk 0:00:25.4]} 54. h7
{[%clk 0:00:25.8]} 54... Rh1+ {[%clk 0:00:24.3]} 55. Kg3 {[%clk 0:00:27.1]}
55... Qd6 {[%clk 0:00:19.9]} 56. h8=Q {[%clk 0:00:21.4]} 56... Qd3+ {[%clk
0:00:19.2]} 57. Kg2 {[%clk 0:00:20.5]} 57... Qe4+ {[%clk 0:00:19]} 58. Rf3
{[%clk 0:00:21.4]} 58... Rxh8 {[%clk 0:00:17.5]} 59. Qxf6+ {[%clk 0:00:22.1]}
59... Kd7 {[%clk 0:00:17]} 60. Qxh8 {[%clk 0:00:23.1]} 60... Qxg4+ {[%clk
0:00:17.3]} 61. Kf2 {[%clk 0:00:23.7]} 61... Qg5 {[%clk 0:00:17.3]} 62. Qh3+
{[%clk 0:00:24]} 62... Ke7 {[%clk 0:00:17.7]} 63. Qf1 {[%clk 0:00:23.8]} 63...
e4 {[%clk 0:00:17.2]} 64. Re3 {[%clk 0:00:24.3]} 64... f5 {[%clk 0:00:18.1]} 65.
Qg2 {[%clk 0:00:23.4]} 65... Qf4+ {[%clk 0:00:18.6]} 66. Ke2 {[%clk 0:00:24.6]}
66... Qh4 {[%clk 0:00:18.4]} 67. Qg7+ {[%clk 0:00:25.2]} 67... Ke6 {[%clk
0:00:19.6]} 68. Qg6+ {[%clk 0:00:26.4]} 68... Ke5 {[%clk 0:00:20.4]} 69. Qg3+
{[%clk 0:00:27.3]} 1-0

[Event "*** MasterClass Titled Tuesday Blitz"]
[Site "Chess.com"]
[Date "2017.09.05"]
[Round "4"]
[White "AllStarShark"]
[Black "Blitzstream"]
[Result "0-1"]
[WhiteElo "2324"]
[BlackElo "2487"]
[TimeControl "180+2"]
[EndTime "13:59:41 PDT"]
[Termination "Blitzstream won on time"]

1. d4 {[%clk 0:03:01.9]} 1... Nf6 {[%clk 0:03:00.6]} 2. Nf3 {[%clk 0:03:00.1]}
2... b5 {[%clk 0:03:00.7]} 3. Bg5 {[%clk 0:02:58.9]} 3... Ne4 {[%clk 0:03:01.1]}
4. Bf4 {[%clk 0:02:59.7]} 4... Bb7 {[%clk 0:03:02.3]} 5. e3 {[%clk 0:03:00.7]}
5... a6 {[%clk 0:03:03.5]} 6. Bd3 {[%clk 0:03:01.5]} 6... e6 {[%clk 0:03:04.2]}
7. Nbd2 {[%clk 0:03:02.4]} 7... Nxd2 {[%clk 0:03:03.9]} 8. Qxd2 {[%clk
0:03:02.1]} 8... c5 {[%clk 0:03:04.8]} 9. c3 {[%clk 0:03:02.3]} 9... Nc6 {[%clk
0:03:04.6]} 10. O-O {[%clk 0:03:01.7]} 10... Be7 {[%clk 0:03:04.6]} 11. Ne5
{[%clk 0:02:52.3]} 11... Nxe5 {[%clk 0:03:05.3]} 12. Bxe5 {[%clk 0:02:53.4]}
12... d6 {[%clk 0:03:06.5]} 13. Bg3 {[%clk 0:02:51.2]} 13... h5 {[%clk
0:03:06.7]} 14. f3 {[%clk 0:02:43.5]} 14... h4 {[%clk 0:03:07.1]} 15. Be1 {[%clk
0:02:44.2]} 15... h3 {[%clk 0:03:08.4]} 16. g3 {[%clk 0:02:44.6]} 16... Qb6
{[%clk 0:03:09.1]} 17. e4 {[%clk 0:02:14.2]} 17... cxd4 {[%clk 0:03:07.8]} 18.
Bf2 {[%clk 0:02:15.4]} 18... Bf6 {[%clk 0:02:47.1]} 19. cxd4 {[%clk 0:01:52.3]}
19... O-O {[%clk 0:02:34.6]} 20. d5 {[%clk 0:01:46.9]} 20... Qd8 {[%clk
0:02:34.2]} 21. dxe6 {[%clk 0:01:45]} 21... fxe6 {[%clk 0:02:35.2]} 22. Qe3
{[%clk 0:01:31.3]} 22... Bxb2 {[%clk 0:02:30]} 23. Rad1 {[%clk 0:01:27.5]} 23...
Rc8 {[%clk 0:02:24.9]} 24. Qe2 {[%clk 0:00:57.3]} 24... Bf6 {[%clk 0:02:14]} 25.
f4 {[%clk 0:00:57.4]} 25... Qe8 {[%clk 0:02:06.5]} 26. Qg4 {[%clk 0:00:54.9]}
26... Rc3 {[%clk 0:02:02.5]} 27. Qxh3 {[%clk 0:00:50.5]} 27... e5 {[%clk
0:01:58.1]} 28. Be1 {[%clk 0:00:29.8]} 28... Rxd3 {[%clk 0:00:54.5]} 29. Rxd3
{[%clk 0:00:31.7]} 29... exf4 {[%clk 0:00:55.2]} 30. Rxd6 {[%clk 0:00:29.4]}
30... fxg3 {[%clk 0:00:34.9]} 31. Bxg3 {[%clk 0:00:27.5]} 31... Bc8 {[%clk
0:00:16.3]} 32. Qg2 {[%clk 0:00:21.3]} 32... Qh5 {[%clk 0:00:16.7]} 33. e5
{[%clk 0:00:20.2]} 33... Bh3 {[%clk 0:00:17.4]} 34. Qd5+ {[%clk 0:00:17.7]}
34... Kh7 {[%clk 0:00:16.8]} 35. Qe4+ {[%clk 0:00:16.9]} 35... Kh8 {[%clk
0:00:15.2]} 36. Rf4 {[%clk 0:00:14.1]} 36... Re8 {[%clk 0:00:11.9]} 37. Rdxf6
{[%clk 0:00:14.4]} 37... Qd1+ {[%clk 0:00:12.3]} 38. Rf1 {[%clk 0:00:15.3]}
38... Bxf1 {[%clk 0:00:08.1]} 39. Rxf1 {[%clk 0:00:17.2]} 39... Qd2 {[%clk
0:00:08.3]} 40. Qh4+ {[%clk 0:00:16.5]} 40... Kg8 {[%clk 0:00:09.2]} 41. Qf4
{[%clk 0:00:17.5]} 41... Qxa2 {[%clk 0:00:09.7]} 42. Qf5 {[%clk 0:00:15.3]}
42... Qc4 {[%clk 0:00:08.6]} 43. Rf4 {[%clk 0:00:15.7]} 43... Qc1+ {[%clk
0:00:09.2]} 44. Kg2 {[%clk 0:00:16.5]} 44... Qd2+ {[%clk 0:00:09.8]} 45. Kh3
{[%clk 0:00:17.1]} 45... Qd5 {[%clk 0:00:10.7]} 46. Rh4 {[%clk 0:00:08.1]} 46...
Qe6 {[%clk 0:00:09.2]} 47. Qxe6+ {[%clk 0:00:08.5]} 47... Rxe6 {[%clk
0:00:11.1]} 48. Rb4 {[%clk 0:00:08.9]} 48... Rb6 {[%clk 0:00:10.2]} 49. Bf2
{[%clk 0:00:09.6]} 49... Rb7 {[%clk 0:00:11.5]} 50. Kg4 {[%clk 0:00:09]} 50...
a5 {[%clk 0:00:12.8]} 51. Rd4 {[%clk 0:00:10.3]} 51... Kf7 {[%clk 0:00:11.7]}
52. Kf5 {[%clk 0:00:11.7]} 52... g6+ {[%clk 0:00:12.9]} 53. Kg5 {[%clk
0:00:11.2]} 53... b4 {[%clk 0:00:14.3]} 54. Rd6 {[%clk 0:00:11.3]} 54... b3
{[%clk 0:00:15]} 55. Bd4 {[%clk 0:00:12]} 55... b2 {[%clk 0:00:13.7]} 56. Bxb2
{[%clk 0:00:12]} 56... Rxb2 {[%clk 0:00:15.6]} 57. Rf6+ {[%clk 0:00:11.2]} 57...
Ke7 {[%clk 0:00:15.8]} 58. Rxg6 {[%clk 0:00:11.2]} 58... Rg2+ {[%clk 0:00:13.6]}
59. Kf5 {[%clk 0:00:09.3]} 59... Rxg6 {[%clk 0:00:15.5]} 60. Kxg6 {[%clk
0:00:10.1]} 60... a4 {[%clk 0:00:17.4]} 61. h4 {[%clk 0:00:11.3]} 61... a3
{[%clk 0:00:19.3]} 62. h5 {[%clk 0:00:12.9]} 62... a2 {[%clk 0:00:20.8]} 63. h6
{[%clk 0:00:14.8]} 63... a1=Q {[%clk 0:00:22.1]} 64. h7 {[%clk 0:00:16.7]} 64...
Qxe5 {[%clk 0:00:23.1]} 0-1

[Event "*** MasterClass Titled Tuesday Blitz"]
[Site "Chess.com"]
[Date "2017.09.05"]
[Round "4"]
[White "MyleneFarmer"]
[Black "Art10ECHR"]
[Result "1/2-1/2"]
[WhiteElo "2423"]
[BlackElo "2239"]
[TimeControl "180+2"]
[EndTime "13:59:51 PDT"]
[Termination "Game drawn by agreement"]

1. d4 {[%clk 0:02:44.1]} 1... Nf6 {[%clk 0:02:59.1]} 2. Bg5 {[%clk 0:02:43.1]}
2... d5 {[%clk 0:02:59.7]} 3. e3 {[%clk 0:02:33.4]} 3... c5 {[%clk 0:02:58]} 4.
Bxf6 {[%clk 0:02:27.4]} 4... gxf6 {[%clk 0:02:59.9]} 5. dxc5 {[%clk 0:02:23.1]}
5... Nc6 {[%clk 0:02:57.7]} 6. Nf3 {[%clk 0:02:22.1]} 6... e5 {[%clk 0:02:53.9]}
7. Bb5 {[%clk 0:02:19]} 7... Qa5+ {[%clk 0:02:41.6]} 8. Nc3 {[%clk 0:02:17]}
8... a6 {[%clk 0:02:43.1]} 9. Bxc6+ {[%clk 0:02:05.8]} 9... bxc6 {[%clk
0:02:45]} 10. Nd2 {[%clk 0:01:46.3]} 10... Qxc5 {[%clk 0:02:38.9]} 11. O-O
{[%clk 0:01:39.1]} 11... Rg8 {[%clk 0:02:35.6]} 12. Nb3 {[%clk 0:01:35.8]} 12...
Qb4 {[%clk 0:02:25.2]} 13. f4 {[%clk 0:01:28.9]} 13... Be6 {[%clk 0:02:06.4]}
14. Qh5 {[%clk 0:01:20.7]} 14... Rg6 {[%clk 0:01:58.3]} 15. Rae1 {[%clk
0:01:18.8]} 15... O-O-O {[%clk 0:01:50.4]} 16. Qe2 {[%clk 0:01:15.3]} 16... Bh3
{[%clk 0:01:36.9]} 17. Qxa6+ {[%clk 0:01:12.5]} 17... Kc7 {[%clk 0:01:32.5]} 18.
Rf2 {[%clk 0:01:12.5]} 18... exf4 {[%clk 0:01:27.3]} 19. exf4 {[%clk 0:01:07.2]}
19... Qb6 {[%clk 0:01:23.7]} 20. Qxb6+ {[%clk 0:01:07]} 20... Kxb6 {[%clk
0:01:25.6]} 21. f5 {[%clk 0:01:08.4]} 21... Rg5 {[%clk 0:01:24.3]} 22. Nd4
{[%clk 0:01:02.6]} 22... Ra8 {[%clk 0:01:22.1]} 23. Kf1 {[%clk 0:00:54.9]} 23...
Bc5 {[%clk 0:01:17.9]} 24. Rd1 {[%clk 0:00:52.6]} 24... Bg4 {[%clk 0:01:17.2]}
25. Rd3 {[%clk 0:00:52.5]} 25... Kc7 {[%clk 0:01:13.1]} 26. h3 {[%clk
0:00:52.8]} 26... Bxd4 {[%clk 0:01:10.5]} 27. Rxd4 {[%clk 0:00:52.5]} 27... Bxf5
{[%clk 0:01:10.9]} 28. h4 {[%clk 0:00:51.6]} 28... Rg4 {[%clk 0:01:11.5]} 29.
Rxg4 {[%clk 0:00:51.8]} 29... Bxg4 {[%clk 0:01:13.4]} 30. Rxf6 {[%clk
0:00:53.1]} 30... Be6 {[%clk 0:01:14.1]} 31. a3 {[%clk 0:00:53.3]} 31... d4
{[%clk 0:01:11.8]} 32. Ne2 {[%clk 0:00:42.3]} 32... c5 {[%clk 0:01:13.1]} 33.
Nf4 {[%clk 0:00:41.4]} 33... Kd6 {[%clk 0:01:11.6]} 34. Nxe6 {[%clk 0:00:41.7]}
34... fxe6 {[%clk 0:01:13.7]} 35. Rh6 {[%clk 0:00:42.5]} 35... c4 {[%clk
0:01:10.2]} 36. Rxh7 {[%clk 0:00:42.4]} 36... Rb8 {[%clk 0:00:52.9]} 37. b4
{[%clk 0:00:38.5]} 37... cxb3 {[%clk 0:00:54.1]} 38. cxb3 {[%clk 0:00:38.9]}
38... Rxb3 {[%clk 0:00:56.8]} 39. Ke2 {[%clk 0:00:39]} 39... Rxa3 {[%clk
0:00:55.5]} 40. h5 {[%clk 0:00:37.5]} 40... Ke5 {[%clk 0:00:57.4]} 41. Rg7
{[%clk 0:00:33.5]} 41... Kf6 {[%clk 0:00:55.4]} 42. Rg6+ {[%clk 0:00:30.9]}
42... Kf5 {[%clk 0:00:54.2]} 43. g4+ {[%clk 0:00:31.1]} 43... Kf4 {[%clk
0:00:54.6]} 44. h6 {[%clk 0:00:26.8]} 44... e5 {[%clk 0:00:37.1]} 45. Rg8 {[%clk
0:00:21.7]} 45... Rh3 {[%clk 0:00:35.3]} 46. g5 {[%clk 0:00:20.5]} 46... e4
{[%clk 0:00:32.5]} 47. g6 {[%clk 0:00:15]} 47... d3+ {[%clk 0:00:24.8]} 48. Kd2
{[%clk 0:00:16]} 48... Rh2+ {[%clk 0:00:23.1]} 49. Kc3 {[%clk 0:00:16.5]} 49...
d2 {[%clk 0:00:21]} 50. Kc2 {[%clk 0:00:15.7]} 50... Rxh6 {[%clk 0:00:16]} 51.
Kxd2 {[%clk 0:00:16.4]} 51... Kf5 {[%clk 0:00:15.1]} 52. g7 {[%clk 0:00:16.8]}
52... Kg6 {[%clk 0:00:13.9]} 53. Ke3 {[%clk 0:00:15.7]} 53... Rh7 {[%clk
0:00:07.3]} 54. Kxe4 {[%clk 0:00:15.6]} 1/2-1/2